fUSD/lending_fUSD_20240518
["ID","MTS","AMOUNT","RATE_DAILY","PERIOD"]
[327421903,1716064242876,-500.0,0.00027397,2]
[327421904,1716064242885,-500.0,0.00027397,2]
[327421905,1716064242895,-500.0,0.00027397,2]
[327421906,1716064242905,-500.0,0.00027397,2]
[327421907,1716064242914,-500.0,0.00027397,2]
[327421908,1716064242923,-500.0,0.00027397,2]
[327421909,1716064242934,-500.0,0.00027397,2]
[327421910,1716064242944,-600.95447767,0.00027397,2]
[327421911,1716064242953,-500.0,0.00027397,2]
[327421912,1716064242963,-500.0,0.00027397,2]
[327421913,1716064242972,-500.0,0.00027397,2]
[327421914,1716064242981,-514.78944411,0.00027397,2]
[327421915,1716064242991,-500.0,0.00027397,2]
[327421916,1716064243000,-500.0,0.00027397,2]
[327421917,1716064243009,-500.0,0.00027397,2]
[327421918,1716064243018,-500.0,0.00027397,2]
[327421919,1716064243028,-500.0,0.00027397,2]
[327421920,1716064243038,-500.0,0.00027397,2]
[327421921,1716064243048,-544.25293229,0.00027397,2]
[327421922,1716064243057,-504.87046334,0.00027397,2]
[327421923,1716064243067,-500.0,0.00027397,2]
[327421924,1716064243076,-500.0,0.00027397,2]
[327421925,1716064243085,-500.0,0.00027397,2]
[327421926,1716064243095,-500.0,0.00027397,2]
[327421927,1716064243104,-500.0,0.00027397,2]
[327421928,1716064243114,-500.0,0.00027397,2]
[327421929,1716064243124,-500.0,0.00027397,2]
[327421930,1716064243134,-560.06502361,0.00027397,2]
[327421931,1716064243152,-500.0,0.00027397,2]
[327421932,1716064243164,-157.44965084,0.00027397,2]
[327421933,1716064243175,-500.0,0.00027397,2]
[327421934,1716064243184,-500.0,0.00027397,2]
[327421935,1716064243194,-500.0,0.00027397,2]
[327421936,1716064243204,-500.0,0.00027397,2]
[327421937,1716064243214,-515.06434944,0.00027397,2]
[327421938,1716064243224,-500.0,0.00027397,2]
[327421939,1716064243234,-524.04245956,0.00027397,2]
[327421940,1716064243244,-500.0,0.00027397,2]
[327421941,1716064243254,-500.0,0.00027397,2]
[327421942,1716064243264,-500.0,0.00027397,2]
[327421943,1716064243274,-500.0,0.00027397,2]
[327421944,1716064243284,-500.0,0.00027397,2]
[327421945,1716064243293,-500.0,0.00027397,2]
[327421946,1716064243303,-500.0,0.00027397,2]
[327421947,1716064243313,-500.0,0.00027397,2]
[327421948,1716064243323,-500.0,0.00027397,2]
[327421949,1716064243333,-500.0,0.00027397,2]
[327421950,1716064243344,-335.55383929,0.00027397,2]
[327421951,1716064243354,-500.0,0.00027397,2]
[327421952,1716064243365,-500.0,0.00027397,2]
[327421953,1716064243374,-500.0,0.00027397,2]
[327421954,1716064243384,-506.75033733,0.00027397,2]
[327421955,1716064243394,-500.0,0.00027397,2]
[327421956,1716064243404,-500.0,0.00027397,2]
[327421957,1716064243414,-500.0,0.00027397,2]
[327421958,1716064243424,-500.0,0.00027397,2]
[327421959,1716064243434,-500.0,0.00027397,2]
[327421960,1716064243444,-500.0,0.00027397,2]
[327421961,1716064243454,-500.0,0.00027397,2]
[327421962,1716064243464,-500.0,0.00027397,2]
[327421963,1716064243474,-500.0,0.00027397,2]
[327421964,1716064243484,-500.0,0.00027397,2]
[327421965,1716064243494,-500.0,0.00027397,2]
[327421966,1716064243504,-500.0,0.00027397,2]
[327421967,1716064243514,-500.0,0.00027397,2]
[327421968,1716064243525,-505.39050485,0.00027397,2]
[327421969,1716064243535,-586.2427568,0.00027397,2]
[327421970,1716064243545,-518.57591824,0.00027397,2]
[327421971,1716064243555,-528.55,0.00027397,2]
[327421972,1716064243564,-500.0,0.00027397,2]
[327421973,1716064243574,-500.0,0.00027397,2]
[327421974,1716064243584,-500.0,0.00027397,2]
[327421975,1716064243593,-500.0,0.00027397,2]
[327421976,1716064243604,-500.0,0.00027397,2]
[327421977,1716064243618,-150.0,0.00027397,2]
[327421978,1716064243629,-511.72604259,0.00027397,2]
[327421979,1716064243639,-500.0,0.00027397,2]
[327421980,1716064243650,-500.0,0.00027397,2]
[327421981,1716064243661,-500.0,0.00027397,2]
[327421982,1716064243671,-512.96343439,0.00027397,2]
[327421983,1716064243681,-500.0,0.00027397,2]
[327421984,1716064243691,-500.0,0.00027397,2]
[327421985,1716064243701,-500.0,0.00027397,2]
[327421986,1716064243711,-500.0,0.00027397,2]
[327421987,1716064243722,-500.0,0.00027397,2]
[327421988,1716064243731,-606.75,0.00027397,2]
[327421989,1716064243741,-500.0,0.00027397,2]
[327421990,1716064243750,-500.0,0.00027397,2]
[327421991,1716064243760,-500.0,0.00027397,2]
[327421992,1716064243770,-5000.0,0.00027397,2]
[327421993,1716064243780,-500.0,0.00027397,2]
[327421994,1716064243790,-500.0,0.00027397,2]
[327421995,1716064243799,-500.0,0.00027397,2]
[327421996,1716064243809,-500.0,0.00027397,2]
[327421997,1716064243819,-500.0,0.00027397,2]
[327421998,1716064243829,-500.0,0.00027397,2]
[327421999,1716064243839,-500.0,0.00027397,2]
[327422000,1716064243848,-579.65978908,0.00027397,2]
[327422001,1716064243859,-500.0,0.00027397,2]
[327422002,1716064243869,-500.0,0.00027397,2]
[327422003,1716064243878,-500.0,0.00027397,2]
[327422004,1716064243888,-500.0,0.00027397,2]
[327422005,1716064243898,-500.0,0.00027397,2]
[327422006,1716064243908,-505.75169095,0.00027397,2]
[327422007,1716064243918,-500.0,0.00027397,2]
[327422008,1716064243927,-500.0,0.00027397,2]
[327422009,1716064243937,-890.29,0.00027397,2]
[327422010,1716064243947,-500.0,0.00027397,2]
[327422011,1716064243956,-1030.81,0.00027397,2]
[327422012,1716064243966,-507.62848255,0.00027397,2]
[327422013,1716064243975,-504.29921253,0.00027397,2]
[327422014,1716064243985,-635.82,0.00027397,2]
[327422015,1716064243994,-502.47639607,0.00027397,2]
[327422016,1716064244004,-500.0,0.00027397,2]
[327422017,1716064244013,-500.0,0.00027397,2]
[327422018,1716064244023,-500.0,0.00027397,2]
[327422019,1716064244033,-500.0,0.00027397,2]
[327422020,1716064244043,-500.0,0.00027397,2]
[327422021,1716064244052,-500.0,0.00027397,2]
[327422022,1716064244062,-630.01,0.00027397,2]
[327422023,1716064244072,-500.0,0.00027397,2]
[327422024,1716064244082,-500.0,0.00027397,2]
[327422025,1716064244091,-500.0,0.00027397,2]
[327422026,1716064244101,-500.0,0.00027397,2]
[327422027,1716064244112,-502.72918034,0.00027397,2]
[327422028,1716064244122,-500.0,0.00027397,2]
[327422029,1716064244132,-500.0,0.00027397,2]
[327422030,1716064244141,-505.87359535,0.00027397,2]
[327422031,1716064244150,-500.0,0.00027397,2]
[327422032,1716064244160,-500.0,0.00027397,2]
[327422033,1716064244170,-283.63138741,0.00027397,2]
[327422034,1716064244179,-500.89683158,0.00027397,2]
[327422035,1716064244188,-509.44308359,0.00027397,2]
[327422036,1716064244198,-1605.62,0.00027397,2]
[327422037,1716064244211,-500.0,0.00027397,2]
[327422038,1716064244222,-500.0,0.00027397,2]
[327422039,1716064244232,-500.0,0.00027397,2]
[327422040,1716064244242,-500.0,0.00027397,2]
[327422041,1716064244252,-709.53,0.00027397,2]
[327422042,1716064244262,-500.0,0.00027397,2]
[327422043,1716064244272,-520.8,0.00027397,2]
[327422044,1716064244282,-555.00722408,0.00027397,2]
[327422045,1716064244291,-500.0,0.00027397,2]
[327422046,1716064244301,-500.0,0.00027397,2]
[327422047,1716064244311,-527.97266569,0.00027397,2]
[327422048,1716064244320,-499.249126,0.00027397,2]
[327422049,1716064244330,-500.0,0.00027397,2]
[327422050,1716064244340,-500.0,0.00027397,2]
[327422051,1716064244350,-500.0,0.00027397,2]
[327422052,1716064244362,-492.37488628,0.00027397,2]
[327422053,1716064244371,-500.0,0.00027397,2]
[327422054,1716064244381,-500.0,0.00027397,2]
[327422055,1716064244390,-500.0,0.00027397,2]
[327422056,1716064244399,-500.0,0.00027397,2]
[327422057,1716064244409,-500.0,0.00027397,2]
[327422058,1716064244419,-532.96402823,0.00027397,2]
[327422059,1716064244428,-507.26392356,0.00027397,2]
[327422060,1716064244438,-500.0,0.00027397,2]
[327422061,1716064244447,-500.0,0.00027397,2]
[327422062,1716064244457,-500.0,0.00027397,2]
[327422063,1716064244467,-500.0,0.00027397,2]
[327422064,1716064244476,-533.55302248,0.00027397,2]
[327422065,1716064244486,-500.0,0.00027397,2]
[327422066,1716064244650,-500.0,0.00027397,2]
[327422067,1716064244660,-500.0,0.00027397,2]
[327422068,1716064244669,-500.0,0.00027397,2]
[327422069,1716064244679,-500.0,0.00027397,2]
[327422070,1716064244689,-500.0,0.00027397,2]
[327422071,1716064244704,-500.0,0.00027397,2]
[327422072,1716064244713,-500.0,0.00027397,2]
[327422073,1716064244723,-500.0,0.00027397,2]
[327422074,1716064244733,-500.0,0.00027397,2]
[327422075,1716064244743,-500.0,0.00027397,2]
[327422076,1716064244754,-500.0,0.00027397,2]
[327422077,1716064244763,-500.0,0.00027397,2]
[327422078,1716064244773,-500.0,0.00027397,2]
[327422079,1716064244783,-500.0,0.00027397,2]
[327422080,1716064244792,-500.0,0.00027397,2]
[327422081,1716064244802,-1151.42,0.00027397,2]
[327422082,1716064244811,-675.87,0.00027397,2]
[327422083,1716064244821,-500.0,0.00027397,2]
[327422084,1716064244831,-500.0,0.00027397,2]
[327422085,1716064244840,-541.66,0.00027397,2]
[327422086,1716064244849,-500.0,0.00027397,2]
[327422087,1716064244860,-500.0,0.00027397,2]
[327422088,1716064244869,-500.0,0.00027397,2]
[327422089,1716064244878,-500.0,0.00027397,2]
[327422090,1716064244887,-203.7908617,0.00027397,2]
[327422091,1716064244896,-521.56,0.00027397,2]
[327422092,1716064244906,-166.66547548,0.00027397,2]
[327422093,1716064244916,-500.0,0.00027397,2]
[327422094,1716064244925,-500.0,0.00027397,2]
[327422095,1716064244935,-500.0,0.00027397,2]
[327422096,1716064244944,-500.0,0.00027397,2]
[327422097,1716064244953,-500.0,0.00027397,2]
[327422098,1716064244963,-500.0,0.00027397,2]
[327422099,1716064244972,-500.0,0.00027397,2]
[327422100,1716064244982,-500.0,0.00027397,2]
[327422101,1716064244992,-515.33654606,0.00027397,2]
[327422102,1716064245002,-1442.6,0.00027397,2]
[327422103,1716064245013,-500.0,0.00027397,2]
[327422104,1716064245022,-500.0,0.00027397,2]
[327422105,1716064245032,-500.0,0.00027397,2]
[327422106,1716064245042,-500.0,0.00027397,2]
[327422107,1716064245051,-500.0,0.00027397,2]
[327422108,1716064245062,-500.0,0.00027397,2]
[327422109,1716064245072,-683.85,0.00027397,2]
[327422110,1716064245081,-628.84,0.00027397,2]
[327422111,1716064245091,-504.71466773,0.00027397,2]
[327422112,1716064245100,-500.0,0.00027397,2]
[327422113,1716064245111,-500.0,0.00027397,2]
[327422114,1716064245121,-1025.38,0.00027397,2]
[327422115,1716064245130,-170.15441222,0.00027397,2]
[327422116,1716064245139,-500.0,0.00027397,2]
[327422117,1716064245149,-500.0,0.00027397,2]
[327422118,1716064245158,-512.8,0.00027397,2]
[327422119,1716064245168,-500.0,0.00027397,2]
[327422120,1716064245177,-510.23458588,0.00027397,2]
[327422121,1716064245187,-500.0,0.00027397,2]
[327422122,1716064245197,-500.0,0.00027397,2]
[327422123,1716064245206,-500.0,0.00027397,2]
[327422124,1716064245215,-500.0,0.00027397,2]
[327422125,1716064245225,-500.0,0.00027397,2]
[327422126,1716064245234,-500.0,0.00027397,2]
[327422127,1716064245243,-500.0,0.00027397,2]
[327422128,1716064245253,-500.0,0.00027397,2]
[327422129,1716064245262,-500.0,0.00027397,2]
[327422130,1716064245271,-500.0,0.00027397,2]
[327422131,1716064245281,-500.0,0.00027397,2]
[327422132,1716064245290,-500.0,0.00027397,2]
[327422133,1716064245299,-500.0,0.00027397,2]
[327422134,1716064245309,-500.0,0.00027397,2]
[327422135,1716064245319,-733.72,0.00027397,2]
[327422136,1716064245328,-151.0,0.00027397,7]
[327422137,1716064245338,-500.0,0.00027397,2]
[327422138,1716064245347,-582.35,0.00027397,2]
[327422139,1716064245356,-500.0,0.00027397,2]
[327422140,1716064245367,-151.0,0.00027397,7]
[327422141,1716064245376,-500.0,0.00027397,2]
[327422142,1716064245385,-500.0,0.00027397,2]
[327422143,1716064245395,-500.0,0.00027397,2]
[327422144,1716064245404,-500.0,0.00027397,2]
[327422145,1716064245413,-528.11,0.00027397,2]
[327422146,1716064245423,-500.0,0.00027397,2]
[327422147,1716064245432,-500.0,0.00027397,2]
[327422148,1716064245442,-511.90433217,0.00027397,2]
[327422149,1716064245451,-500.0,0.00027397,2]
[327422150,1716064245461,-500.0,0.00027397,2]
[327422151,1716064245471,-500.0,0.00027397,2]
[327422152,1716064245480,-500.0,0.00027397,2]
[327422153,1716064245489,-885.17,0.00027397,2]
[327422154,1716064245500,-500.0,0.00027397,2]
[327422155,1716064245510,-500.0,0.00027397,2]
[327422156,1716064245520,-539.88,0.00027397,2]
[327422157,1716064245529,-595.46854081,0.00027397,2]
[327422158,1716064245539,-500.0,0.00027397,2]
[327422159,1716064245549,-500.0,0.00027397,2]
[327422160,1716064245558,-522.49,0.00027397,2]
[327422161,1716064245568,-500.0,0.00027397,2]
[327422162,1716064245577,-500.0,0.00027397,2]
[327422163,1716064245587,-510.6545631,0.00027397,2]
[327422164,1716064245596,-500.0,0.00027397,2]
[327422165,1716064245617,-500.0,0.00027397,2]
[327422166,1716064245635,-1505.44,0.00027397,2]
[327422167,1716064245649,-500.0,0.00027397,2]
[327422168,1716064245666,-1728.57,0.00027397,2]
[327422169,1716064245682,-519.73,0.00027397,2]
[327422170,1716064245698,-744.29,0.00027397,2]
[327422171,1716064245717,-500.0,0.00027397,2]
[327422172,1716064245733,-725.07,0.00027397,2]
[327422173,1716064245748,-538.1475523,0.00027397,2]
[327422174,1716064245764,-500.0,0.00027397,2]
[327422175,1716064245779,-500.0,0.00027397,2]
[327422176,1716064245793,-914.58,0.00027397,2]
[327422177,1716064245809,-507.28538708,0.00027397,2]
[327422178,1716064245823,-660.08,0.00027397,2]
[327422179,1716064245841,-500.0,0.00027397,2]
[327422180,1716064245856,-179.46665447,0.00027397,2]
[327422181,1716064245868,-500.0,0.00027397,2]
[327422182,1716064245880,-506.48,0.00027397,2]
[327422183,1716064245895,-509.56566999,0.00027397,2]
[327422184,1716064245908,-500.0,0.00027397,2]
[327422185,1716064245922,-508.39692262,0.00027397,2]
[327422186,1716064245937,-500.0,0.00027397,2]
[327422187,1716064245949,-500.0,0.00027397,2]
[327422188,1716064245962,-151.0,0.00027397,7]
[327422190,1716064245975,-500.0,0.00027397,2]
[327422192,1716064245989,-500.0,0.00027397,2]
[327422193,1716064246002,-500.0,0.00027397,2]
[327422194,1716064246015,-710.62,0.00027397,2]
[327422195,1716064246028,-500.0,0.00027397,2]
[327422197,1716064246042,-512.98702813,0.00027397,2]
[327422198,1716064246055,-1026.05,0.00027397,2]
[327422199,1716064246072,-500.0,0.00027397,2]
[327422200,1716064246086,-500.0,0.00027397,2]
[327422201,1716064246099,-500.0,0.00027397,2]
[327422202,1716064246113,-500.0,0.00027397,2]
[327422203,1716064246126,-1117.84,0.00027397,2]
[327422204,1716064246140,-500.0,0.00027397,2]
[327422205,1716064246153,-2543.78,0.00027397,2]
[327422206,1716064246167,-500.0,0.00027397,2]
[327422207,1716064246183,-500.0,0.00027397,2]
[327422208,1716064246196,-500.0,0.00027397,2]
[327422209,1716064246210,-1001.21,0.00027397,2]
[327422210,1716064246223,-513.64675288,0.00027397,2]
[327422211,1716064246236,-500.0,0.00027397,2]
[327422212,1716064246250,-500.0,0.00027397,2]
[327422213,1716064246263,-500.0,0.00027397,2]
[327422214,1716064246277,-503.70458072,0.00027397,2]
[327422215,1716064246290,-500.0,0.00027397,2]
[327422216,1716064246303,-500.0,0.00027397,2]
[327422217,1716064246318,-500.0,0.00027397,2]
[327422218,1716064246332,-654.38,0.00027397,2]
[327422219,1716064246346,-500.0,0.00027397,2]
[327422220,1716064246359,-500.0,0.00027397,2]
[327422221,1716064246374,-2068.33,0.00027397,2]
[327422222,1716064246387,-295.30686141,0.00027397,2]
[327422223,1716064246400,-500.0,0.00027397,2]
[327422224,1716064246414,-500.0,0.00027397,2]
[327422225,1716064246426,-500.0,0.00027397,2]
[327422226,1716064246438,-1067.86,0.00027397,2]
[327422227,1716064246450,-500.0,0.00027397,2]
[327422228,1716064246461,-500.0,0.00027397,2]
[327422229,1716064246473,-566.23541507,0.00027397,2]
[327422230,1716064246485,-500.0,0.00027397,2]
[327422231,1716064246497,-500.0,0.00027397,2]
[327422232,1716064246509,-500.0,0.00027397,2]
[327422233,1716064246521,-569.14,0.00027397,2]
[327422234,1716064246533,-500.0,0.00027397,2]
[327422235,1716064246545,-500.0,0.00027397,2]
[327422236,1716064246557,-500.0,0.00027397,2]
[327422237,1716064246568,-500.0,0.00027397,2]
[327422238,1716064246580,-500.0,0.00027397,2]
[327422239,1716064246591,-169.915346,0.00027397,7]
[327422240,1716064246603,-500.0,0.00027397,2]
[327422241,1716064246617,-500.0,0.00027397,2]
[327422242,1716064246629,-739.53,0.00027397,2]
[327422243,1716064246641,-500.0,0.00027397,2]
[327422244,1716064246653,-500.0,0.00027397,2]
[327422245,1716064246666,-1162.97,0.00027397,2]
[327422246,1716064246678,-916.72,0.00027397,2]
[327422247,1716064246691,-169.915346,0.00027397,7]
[327422248,1716064246708,-510.20766446,0.00027397,2]
[327422249,1716064246721,-586.14,0.00027397,2]
[327422250,1716064246732,-500.0,0.00027397,2]
[327422251,1716064246744,-1575.56,0.00027397,2]
[327422252,1716064246755,-560.47,0.00027397,2]
[327422253,1716064246775,-1565.63,0.00027397,2]
[327422254,1716064246787,-505.36554652,0.00027397,2]
[327422255,1716064246800,-500.0,0.00027397,2]
[327422256,1716064246811,-768.19,0.00027397,2]
[327422257,1716064246823,-500.0,0.00027397,2]
[327422258,1716064246834,-500.0,0.00027397,2]
[327422259,1716064246847,-244.23031387,0.00027397,2]
[327422260,1716064246858,-500.0,0.00027397,2]
[327422261,1716064246871,-500.0,0.00027397,2]
[327422262,1716064246883,-500.0,0.00027397,2]
[327422263,1716064246895,-500.0,0.00027397,2]
[327422264,1716064246907,-500.0,0.00027397,2]
[327422265,1716064246921,-1008.64,0.00027397,2]
[327422266,1716064246935,-500.0,0.00027397,2]
[327422267,1716064246949,-500.0,0.00027397,2]
[327422268,1716064246963,-500.0,0.00027397,2]
[327422269,1716064246976,-517.27,0.00027397,2]
[327422270,1716064246989,-500.0,0.00027397,2]
[327422271,1716064247004,-514.95480586,0.00027397,2]
[327422272,1716064247018,-730.23761665,0.00027397,2]
[327422273,1716064247031,-154.436216,0.00027397,7]
[327422274,1716064247045,-553.60626583,0.00027397,2]
[327422275,1716064247058,-500.0,0.00027397,2]
[327422276,1716064247071,-151.0,0.00027397,7]
[327422277,1716064247086,-1479.81,0.00027397,2]
[327422278,1716064247099,-500.0,0.00027397,2]
[327422279,1716064247112,-500.0,0.00027397,2]
[327422280,1716064247126,-500.0,0.00027397,2]
[327422281,1716064247139,-1048.87,0.00027397,2]
[327422282,1716064247152,-500.0,0.00027397,2]
[327422283,1716064247165,-500.0,0.00027397,2]
[327422284,1716064247179,-500.0,0.00027397,2]
[327422285,1716064247192,-500.0,0.00027397,2]
[327422286,1716064247202,-500.0,0.00027397,2]
[327422287,1716064247212,-517.98,0.00027397,2]
[327422288,1716064247223,-582.97036031,0.00027397,2]
[327422289,1716064247352,-1183.88,0.00027397,2]
[327422290,1716064247367,-524.3575029,0.00027397,2]
[327422291,1716064247377,-686.46,0.00027397,2]
[327422292,1716064247385,-500.0,0.00027397,2]
[327422293,1716064247395,-506.05,0.00027397,2]
[327422294,1716064247404,-500.0,0.00027397,2]
[327422295,1716064247414,-1157.68,0.00027397,2]
[327422296,1716064247423,-500.0,0.00027397,2]
[327422297,1716064247433,-500.0,0.00027397,2]
[327422298,1716064247442,-500.0,0.00027397,2]
[327422299,1716064247451,-500.0,0.00027397,2]
[327422300,1716064247460,-500.0,0.00027397,2]
[327422301,1716064247470,-551.29,0.00027397,2]
[327422302,1716064247479,-500.0,0.00027397,2]
[327422303,1716064247489,-794.29,0.00027397,2]
[327422304,1716064247498,-500.0,0.00027397,2]
[327422305,1716064247508,-500.0,0.00027397,2]
[327422306,1716064247518,-1468.53,0.00027397,2]
[327422307,1716064247527,-530.05700525,0.00027397,2]
[327422308,1716064247537,-500.0,0.00027397,2]
[327422309,1716064247546,-500.0,0.00027397,2]
[327422310,1716064247555,-500.0,0.00027397,2]
[327422311,1716064247564,-500.0,0.00027397,2]
[327422312,1716064247573,-500.0,0.00027397,2]
[327422313,1716064247582,-500.0,0.00027397,2]
[327422314,1716064247592,-500.0,0.00027397,2]
[327422315,1716064247601,-500.0,0.00027397,2]
[327422316,1716064247610,-500.0,0.00027397,2]
[327422317,1716064247624,-500.0,0.00027397,2]
[327422318,1716064247633,-500.0,0.00027397,2]
[327422319,1716064247642,-552.01,0.00027397,2]
[327422320,1716064247653,-500.0,0.00027397,2]
[327422321,1716064247663,-500.0,0.00027397,2]
[327422322,1716064247673,-500.0,0.00027397,2]
[327422323,1716064247682,-500.0,0.00027397,2]
[327422324,1716064247692,-500.0,0.00027397,2]
[327422325,1716064247702,-500.0,0.00027397,2]
[327422326,1716064247711,-500.0,0.00027397,2]
[327422327,1716064247720,-500.0,0.00027397,2]
[327422328,1716064247730,-500.0,0.00027397,2]
[327422329,1716064247740,-552.15265353,0.00027397,2]
[327422330,1716064247750,-151.0,0.00027397,7]
[327422331,1716064247760,-500.0,0.00027397,2]
[327422332,1716064247769,-1521.91,0.00027397,2]
[327422333,1716064247779,-1487.2,0.00027397,2]
[327422334,1716064247790,-500.0,0.00027397,2]
[327422335,1716064247799,-500.0,0.00027397,2]
[327422336,1716064247808,-1083.77,0.00027397,2]
[327422337,1716064247818,-912.04,0.00027397,2]
[327422338,1716064247827,-500.0,0.00027397,2]
[327422339,1716064247837,-500.0,0.00027397,2]
[327422340,1716064247846,-500.0,0.00027397,2]
[327422341,1716064247856,-500.0,0.00027397,2]
[327422342,1716064247865,-1984.31,0.00027397,2]
[327422343,1716064247874,-500.0,0.00027397,2]
[327422344,1716064247883,-500.0,0.00027397,2]
[327422345,1716064247892,-500.0,0.00027397,2]
[327422346,1716064247903,-500.0,0.00027397,2]
[327422347,1716064247915,-151.0,0.00027397,7]
[327422348,1716064247925,-500.0,0.00027397,2]
[327422349,1716064247935,-500.0,0.00027397,2]
[327422350,1716064247944,-526.46830541,0.00027397,2]
[327422351,1716064247953,-500.0,0.00027397,2]
[327422352,1716064247962,-500.0,0.00027397,2]
[327422353,1716064247971,-641.45,0.00027397,2]
[327422354,1716064247980,-500.0,0.00027397,2]
[327422355,1716064247990,-500.0,0.00027397,2]
[327422356,1716064247999,-500.0,0.00027397,2]
[327422357,1716064248009,-500.0,0.00027397,2]
[327422358,1716064248019,-500.0,0.00027397,2]
[327422359,1716064248028,-500.0,0.00027397,2]
[327422360,1716064248037,-500.0,0.00027397,2]
[327422361,1716064248045,-500.0,0.00027397,2]
[327422362,1716064248055,-500.0,0.00027397,2]
[327422363,1716064248064,-500.0,0.00027397,2]
[327422364,1716064248074,-500.0,0.00027397,2]
[327422365,1716064248083,-500.0,0.00027397,2]
[327422366,1716064248093,-517.29616921,0.00027397,2]
[327422367,1716064248104,-500.0,0.00027397,2]
[327422368,1716064248113,-500.0,0.00027397,2]
[327422369,1716064248123,-1410.69,0.00027397,2]
[327422370,1716064248131,-1397.66,0.00027397,2]
[327422371,1716064248141,-209.33320809,0.00027397,2]
[327422372,1716064248150,-500.0,0.00027397,2]
[327422373,1716064248160,-948.25,0.00027397,2]
[327422374,1716064248169,-500.0,0.00027397,2]
[327422375,1716064248178,-962.85,0.00027397,2]
[327422376,1716064248187,-500.0,0.00027397,2]
[327422377,1716064248196,-151.0,0.00027397,7]
[327422378,1716064248205,-500.0,0.00027397,2]
[327422379,1716064248214,-500.0,0.00027397,2]
[327422380,1716064248224,-1221.27,0.00027397,2]
[327422381,1716064248233,-516.22442756,0.00027397,2]
[327422382,1716064248242,-515.81586475,0.00027397,2]
[327422383,1716064248252,-500.0,0.00027397,2]
[327422384,1716064248262,-151.0,0.00027397,7]
[327422385,1716064248272,-764.57,0.00027397,2]
[327422386,1716064248281,-500.0,0.00027397,2]
[327422387,1716064248290,-1371.78,0.00027397,2]
[327422388,1716064248300,-500.0,0.00027397,2]
[327422389,1716064248309,-404.269076,0.00027397,7]
[327422390,1716064248318,-500.0,0.00027397,2]
[327422391,1716064248328,-500.0,0.00027397,2]
[327422392,1716064248338,-500.0,0.00027397,2]
[327422393,1716064248347,-500.0,0.00027397,2]
[327422394,1716064248356,-500.0,0.00027397,2]
[327422395,1716064248365,-500.0,0.00027397,2]
[327422396,1716064248375,-404.269076,0.00027397,7]
[327422397,1716064248384,-500.0,0.00027397,2]
[327422398,1716064248393,-500.0,0.00027397,2]
[327422399,1716064248403,-500.0,0.00027397,2]
[327422400,1716064248412,-990.76,0.00027397,2]
[327422401,1716064248422,-500.0,0.00027397,2]
[327422402,1716064248432,-500.0,0.00027397,2]
[327422403,1716064248441,-500.0,0.00027397,2]
[327422404,1716064248450,-500.0,0.00027397,2]
[327422405,1716064248460,-960.31,0.00027397,2]